[Event "Asian Nation Cup Women 2018"]
[Site "Hamedan"]
[Date "2018.07.30"]
[Round "3"]
[White "Nguyen, Thi Mai Hung"]
[Black "Hamedi Nia, Vesal"]
[Result "1-0"]
[ECO "D30"]
[WhiteElo "2226"]
[BlackElo "2066"]
[Annotator "NA"]
[PlyCount "77"]
[EventDate "2018.07.27"]
[EventType "swiss"]
[EventCountry "IRI"]
[SourceTitle "playchess.com"]
[Source "ChessBase"]
[SourceQuality "1"]
[WhiteTeam "Vietnam"]
[BlackTeam "Iran"]
[WhiteTeamCountry "VIE"]
[BlackTeamCountry "IRI"]
[TimeControl "40/5400+30:1800+30"]

1. d4 {[%emt 0:00:00]} d5 {[%emt 0:00:00]} 2. c4 {[%emt 0:00:50]} e6 {[%emt 0:00:00]} 3. Nf3 {[%emt 0:00:06]} Nf6 {[%emt 0:00:11]} 4. g3 {[%emt 0:00:10]} Bb4+ {[%emt 0:00:15]} 5. Nbd2 {[%emt 0:00:19]} c6 {[%emt 0:03:22]} 6. Qc2 {[%emt 0:02:50]} Nbd7 {[%emt 0:04:13]} 7. Bg2 {[%emt 0:00:17]} O-O {[%emt 0:00:47]} 8. O-O {[%emt 0:00:11]} b6 {[%emt 0:06:15]} 9. e4 {[%emt 0:17:52]} dxe4 {[%emt 0:07:30]} 10. Nxe4 {[%emt 0:06:24]} Bb7 {[%emt 0:08:00]} 11. Rd1 {[%emt 0:06:54]} Qc8 {[%emt 0:07:28]} 12. Nxf6+ {[%emt 0:06:51]} Nxf6 $16 {[%emt 0:00:18]} 13. c5 {[%emt 0:00:40]} bxc5 {[%emt 0:17:09]} 14. dxc5 {[%emt 0:02:18]} Ba5 {[%emt 0:07:37]} 15. Ng5 {[%emt 0:10:31]} Bc7 {[%emt 0:05:21]} 16. b3 {[%emt 0:09:18]} Be5 {[%emt 0:05:34]} 17. Rb1 {[%emt 0:01:52]} Rd8 {[%emt 0:07:25]} 18. Be3 {[%emt 0:00:55]} h6 {[%emt 0:04:09]} 19. Nf3 {[%emt 0:01:17]} Qc7 {[%emt 0:03:37]} 20. Re1 {[%emt 0:03:43]} Nd5 {[%emt 0:08:29]} 21. Bxh6 {[%emt 0:14:48]} Bf6 {[%emt 0:07:25]} 22. Bg5 {[%emt 0:01:49]} a5 {[%emt 0:02:16]} 23. Bxf6 {[%emt 0:01:45]} Nxf6 {[%emt 0:00:12]} 24. Ng5 {[%emt 0:04:46]} Ba6 {[%emt 0:00:51]} 25. Rbd1 {[%emt 0:00:06]} Bb5 {[%emt 0:00:35]} 26. Ne4 {[%emt 0:02:54]} Nd5 {[%emt 0:00:56]} 27. Nd6 {[%emt 0:00:41]} Ba6 {[%emt 0:00:54]} 28. Rd4 {[%emt 0:00:50]} Rxd6 {[%emt 0:00:39]} 29. cxd6 {[%emt 0:00:22]} Qxd6 {[%emt 0:00:01]} 30. Rh4 {[%emt 0:06:57]} f5 {[%emt 0:00:20]} 31. Qd1 {[%emt 0:00:49]} Rd8 {[%emt 0:00:59]} 32. Bxd5 {[%emt 0:03:04]} cxd5 {[%emt 0:00:39]} 33. Qh5 {[%emt 0:00:16]} Bb5 {[%emt 0:00:28]} 34. Qh7+ {[%emt 0:00:48]} Kf7 {[%emt 0:00:10]} 35. Rh6 {[%emt 0:00:18]} Bd7 {[%emt 0:00:49]} 36. Qxf5+ {[%emt 0:00:20]} Kg8 {[%emt 0:00:33]} 37. Qh7+ {[%emt 0:00:15]} Kf8 {[%emt 0:00:30]} 38. Rg6 {[%emt 0:00:28]} Qe7 {[%emt 0:00:20]} 39. Qh8+ {[%emt 0:00:07]} 1-0

[Event "Asian Nation Cup Women 2018"]
[Site "Hamedan"]
[Date "2018.07.31"]
[Round "4"]
[White "Shen, Yang"]
[Black "Asadi, Motahare"]
[Result "1-0"]
[ECO "A61"]
[WhiteElo "2462"]
[BlackElo "2157"]
[Annotator "RC"]
[PlyCount "195"]
[EventDate "2018.07.27"]
[EventType "swiss"]
[EventCountry "IRI"]
[SourceTitle "playchess.com"]
[Source "ChessBase"]
[SourceQuality "1"]
[WhiteTeam "China"]
[BlackTeam "Iran"]
[WhiteTeamCountry "CHN"]
[BlackTeamCountry "IRI"]
[TimeControl "40/5400+30:1800+30"]

1. d4 {[%emt 0:00:00]} Nf6 {[%emt 0:00:34]} 2. c4 {[%emt 0:00:01]} c5 {[%emt 0:00:05]} 3. d5 {[%emt 0:00:13]} e6 {[%emt 0:00:09]} 4. Nc3 {[%emt 0:00:17]} exd5 {[%emt 0:00:07]} 5. cxd5 {[%emt 0:00:08]} d6 {[%emt 0:00:06]} 6. Nf3 {[%emt 0:00:34]} g6 {[%emt 0:00:21]} 7. Nd2 {[%emt 0:00:33]} a6 {[%emt 0:19:41]} 8. a4 Nbd7 {[%emt 0:09:20]} 9. e4 {[%emt 0:00:53]} Bg7 {[%emt 0:02:15]} 10. Be2 {[%emt 0:01:17]} O-O {[%emt 0:00:22]} 11. O-O {[%emt 0:00:45]} Ne8 {[%emt 0:01:19]} 12. Ra3 {[%emt 0:01:39]} f5 {[%emt 0:07:11]} 13. exf5 {[%emt 0:01:52]} Rxf5 {[%emt 0:28:42]} 14. a5 {[%emt 0:00:30]} b5 {[%emt 0:00:30]} 15. axb6 {[%emt 0:00:30]} Nxb6 16. Nde4 {[%emt 0:12:37]} Nf6 {[%emt 0:01:00]} 17. Bg5 Qc7 {[%emt 0:07:39]} 18. Bxf6 {[%emt 0:08:01]} Bxf6 {[%emt 0:00:13]} 19. Bg4 {[%emt 0:03:42]} Rf4 {[%emt 0:05:39]} 20. Bxc8 {[%emt 0:00:41]} Nxc8 {[%emt 0:00:05]} 21. g3 {[%emt 0:01:41]} Rf5 {[%emt 0:00:14]} 22. Qe2 Bxc3 {[%emt 0:02:41]} 23. Nxc3 {[%emt 0:02:01]} Qe7 {[%emt 0:01:18]} 24. Qxe7 {[%emt 0:08:21]} Nxe7 {[%emt 0:00:07]} 25. Ne4 {[%emt 0:00:57]} Nxd5 {[%emt 0:03:06]} 26. Rd1 {[%emt 0:02:34]} Nb6 {[%emt 0:09:12]} 27. Nxd6 {[%emt 0:01:59]} Re5 {[%emt 0:00:22]} 28. Rb3 {[%emt 0:01:22]} Nd7 {[%emt 0:01:23]} 29. Nc4 {[%emt 0:03:35]} Re7 {[%emt 0:00:40]} 30. Rb7 {[%emt 0:01:19]} Rd8 {[%emt 0:00:07]} 31. Rd6 {[%emt 0:08:05]} Kf7 {[%emt 0:00:30]} 32. Kg2 {[%emt 0:02:36]} Ke8 {[%emt 0:00:54]} 33. Rxa6 {[%emt 0:01:47]} Nf6 {[%emt 0:00:31]} 34. Rb5 {[%emt 0:02:27]} Ne4 {[%emt 0:00:21]} 35. h4 {[%emt 0:01:53]} Rd5 {[%emt 0:00:30]} 36. Ra8+ {[%emt 0:01:13]} Kf7 {[%emt 0:00:09]} 37. Rbb8 {[%emt 0:00:47]} Nd2 {[%emt 0:00:43]} 38. Ne3 {[%emt 0:02:55]} Rd3 {[%emt 0:00:48]} 39. h5 {[%emt 0:04:28]} Ne4 {[%emt 0:00:27]} 40. Rf8+ {[%emt 0:01:13]} Ke6 {[%emt 0:30:15]} 41. Ra6+ {[%emt 0:31:23]} Rd6 {[%emt 0:00:00]} 42. Rxd6+ {[%emt 0:00:00]} Nxd6 {[%emt 0:00:00]} 43. hxg6 {[%emt 0:00:00]} hxg6 {[%emt 0:00:00]} 44. Rg8 {[%emt 0:00:00]} Kf7 {[%emt 0:00:00]} 45. Rb8 {[%emt 0:00:00]} Ke6 {[%emt 0:00:00]} 46. Rb6 {[%emt 0:00:00]} Kd7 {[%emt 0:00:00]} 47. Kf3 {[%emt 0:00:00]} Rf7+ {[%emt 0:00:00]} 48. Ke2 {[%emt 0:00:00]} Kc7 {[%emt 0:00:00]} 49. Ra6 {[%emt 0:00:00]} Rf8 {[%emt 0:00:00]} 50. Nd5+ {[%emt 0:00:00]} Kd7 {[%emt 0:00:00]} 51. Ra7+ {[%emt 0:00:00]} Ke6 {[%emt 0:00:00]} 52. Nf4+ {[%emt 0:00:00]} Kf5 {[%emt 0:00:00]} 53. Ra6 {[%emt 0:00:00]} Rf6 {[%emt 0:00:00]} 54. b3 {[%emt 0:00:00]} Ke5 {[%emt 0:00:00]} 55. Ra4 {[%emt 0:00:00]} Nb5 {[%emt 0:00:28]} 56. Ke3 {[%emt 0:00:00]} Nd4 {[%emt 0:01:08]} 57. Ra5 {[%emt 0:00:00]} Kd6 {[%emt 0:05:59]} 58. Ra6+ {[%emt 0:00:00]} Nc6 {[%emt 0:00:07]} 59. Ne2 {[%emt 0:00:00]} Re6+ {[%emt 0:00:36]} 60. Kd2 {[%emt 0:00:00]} Ke5 {[%emt 0:00:21]} 61. Ra8 {[%emt 0:04:29]} Ke4 {[%emt 0:00:43]} 62. Rf8 {[%emt 0:00:23]} Rd6+ {[%emt 0:00:25]} 63. Ke1 {[%emt 0:00:22]} Kd3 {[%emt 0:00:45]} 64. Rf3+ {[%emt 0:02:00]} Ke4 {[%emt 0:00:53]} 65. Re3+ {[%emt 0:01:17]} Kf5 {[%emt 0:00:04]} 66. Rc3 {[%emt 0:00:20]} Rd5 {[%emt 0:00:01]} 67. Nf4 {[%emt 0:01:01]} Re5+ {[%emt 0:00:02]} 68. Kf1 {[%emt 0:00:09]} Nd4 {[%emt 0:02:07]} 69. Nd3 {[%emt 0:00:44]} Rd5 {[%emt 0:00:34]} 70. Nxc5 {[%emt 0:01:21]} Nb5 {[%emt 0:00:14]} 71. Rc4 {[%emt 0:00:23]} g5 {[%emt 0:00:38]} 72. Kg2 {[%emt 0:01:19]} Nd6 {[%emt 0:00:09]} 73. Rc2 {[%emt 0:00:36]} g4 {[%emt 0:00:06]} 74. Na4 {[%emt 0:01:21]} Ne4 {[%emt 0:00:29]} 75. Nb6 {[%emt 0:01:43]} Rb5 {[%emt 0:00:36]} 76. Nc4 {[%emt 0:00:17]} Rxb3 {[%emt 0:00:30]} 77. Ra2 {[%emt 0:04:33]} Nf6 {[%emt 0:01:09]} 78. Ra5+ {[%emt 0:00:27]} Ke6 {[%emt 0:00:49]} 79. Ne3 {[%emt 0:02:23]} Rb7 {[%emt 0:00:39]} 80. Ra4 {[%emt 0:02:02]} Rg7 {[%emt 0:00:19]} 81. Kf1 {[%emt 0:00:11]} Rg5 {[%emt 0:00:29]} 82. Ke2 {[%emt 0:00:10]} Re5 {[%emt 0:00:43]} 83. Kd3 {[%emt 0:00:53]} Rg5 {[%emt 0:00:04]} 84. Kd4 {[%emt 0:01:04]} Kf7 {[%emt 0:00:08]} 85. Ra7+ {[%emt 0:01:43]} Kg6 {[%emt 0:00:04]} 86. Ra6 {[%emt 0:00:10]} Kf7 {[%emt 0:00:51]} 87. Kc4 {[%emt 0:00:37]} Ne4 {[%emt 0:00:42]} 88. Ra2 {[%emt 0:01:53]} Nf6 {[%emt 0:00:15]} 89. Rd2 {[%emt 0:00:26]} Ke6 {[%emt 0:00:27]} 90. Rd4 {[%emt 0:00:19]} Ra5 {[%emt 0:01:03]} 91. Kb3 {[%emt 0:01:12]} Rb5+ {[%emt 0:00:12]} 92. Kc3 {[%emt 0:00:24]} Rc5+ {[%emt 0:00:10]} 93. Kd3 {[%emt 0:00:29]} Rg5 {[%emt 0:00:06]} 94. Nc4 {[%emt 0:00:44]} Rd5 {[%emt 0:00:59]} 95. Ke3 {[%emt 0:01:14]} Rxd4 {[%emt 0:00:19]} 96. Kxd4 {[%emt 0:00:05]} Kf5 {[%emt 0:00:04]} 97. Nd6+ {[%emt 0:00:10]} Kg5 {[%emt 0:00:05]} 98. Ne4+ {[%emt 0:02:52]} 1-0

[Event "Asian Nation Cup Women 2018"]
[Site "Hamedan"]
[Date "2018.07.31"]
[Round "4"]
[White "Guo, Qi"]
[Black "Alavi, Homa"]
[Result "1-0"]
[ECO "D31"]
[WhiteElo "2361"]
[BlackElo "1985"]
[Annotator "NA"]
[PlyCount "99"]
[EventDate "2018.07.27"]
[EventType "swiss"]
[EventCountry "IRI"]
[SourceTitle "playchess.com"]
[Source "ChessBase"]
[SourceQuality "1"]
[WhiteTeam "China"]
[BlackTeam "Iran"]
[WhiteTeamCountry "CHN"]
[BlackTeamCountry "IRI"]
[TimeControl "40/5400+30:1800+30"]

1. d4 {[%emt 0:00:00]} d5 {[%emt 0:00:16]} 2. c4 {[%emt 0:00:00]} e6 {[%emt 0:00:25]} 3. Nc3 {[%emt 0:00:18]} a6 {[%emt 0:00:16]} 4. cxd5 {[%emt 0:02:24]} exd5 {[%emt 0:00:06]} 5. Nf3 {[%emt 0:00:48]} Nf6 {[%emt 0:00:16]} 6. Bg5 {[%emt 0:00:23]} Be7 {[%emt 0:00:40]} 7. e3 {[%emt 0:00:39]} O-O {[%emt 0:00:29] LiveBook: 67 Games} 8. Bd3 {[%emt 0:00:41]} Nbd7 {[%emt 0:01:08]} 9. h3 {[%emt 0:00:43] D53: Queen's Gambit Declined: 4 Bg5 Be7: Early deviations} Re8 {[%emt 0:00:48]} 10. Qc2 {[%emt 0:01:11]} g6 {[%emt 0:02:26]} (10... h6 11. Bh4 c5 12. dxc5 Nxc5 13. O-O Be6 14. Rfd1 Rc8 15. Qe2 Qa5 16. Nd4 Nfe4 17. Bxe4 {½-½ (17) Xu,X (2549)-Ernst,S (2548) Hoogeveen 2017}) 11. O-O {[%emt 0:07:13]} b6 $146 {[%emt 0:03:16]} ({Predecessor:} 11... Nb6 12. Rae1 Nh5 13. Bxe7 Rxe7 14. Ne5 f6 15. Nf3 Be6 16. Ne2 Qd7 17. Nd2 Rae8 {0-1 (52) Alvarez Ibarra,R (2395)-Gil Capape,J (2440) Ponferrada 1997}) 12. Rfd1 (12. Ne5 $5 {[%cal Re5c6]} Bb7 13. f4 $14) 12... Bb7 13. Rac1 {[%emt 0:03:31]} Rc8 {[%emt 0:02:16]} 14. Qe2 {[%emt 0:00:46]} b5 {[%emt 0:00:46]} 15. a4 {[%emt 0:02:46]} c6 {[%emt 0:00:27]} 16. Nd2 {[%emt 0:09:04]} Nh5 {[%emt 0:02:40]} 17. Bxe7 {[%emt 0:00:39]} Qxe7 {[%emt 0:00:02]} 18. Nb3 {[%emt 0:00:27]} Qb4 {[%emt 0:04:20]} 19. Qc2 {[%emt 0:03:32]} Qe7 {[%emt 0:19:17]} 20. Ra1 {[%emt 0:00:30]} b4 {[%emt 0:00:30]} 21. Ne2 {[%emt 0:00:30]} c5 22. dxc5 Nxc5 23. Ned4 {[%emt 0:05:25]} Nxa4 {[%emt 0:01:30]} 24. Qe2 {[%emt 0:02:40]} Qd7 {[%emt 0:00:40]} 25. Qd2 {[%emt 0:00:11]} Rb8 {[%emt 0:10:38]} (25... Nf6 $142) 26. Ra2 {[%emt 0:03:14]} Nb6 {[%emt 0:07:53]} 27. Qxb4 {[%emt 0:07:18]} Nc4 {[%emt 0:01:25]} 28. Nc5 $16 {[%emt 0:08:16]} Qc8 {[%emt 0:21:41]} 29. Bxc4 {[%emt 0:08:05]} dxc4 {[%emt 0:00:59]} 30. Nxb7 {[%emt 0:00:05]} Rxb7 {[%emt 0:01:07]} 31. Qa4 {[%emt 0:01:48]} Rb6 {[%emt 0:06:11]} 32. Rc1 {[%emt 0:00:07]} Re7 {[%emt 0:04:31]} 33. Rxc4 {[%emt 0:03:17]} Rc7 {[%emt 0:01:07]} 34. b3 {[%emt 0:02:56]} Rxc4 {[%emt 0:01:28]} 35. Qxc4 {[%emt 0:00:05]} Qb7 {[%emt 0:01:15]} 36. Ra5 {[%emt 0:00:26]} Ng7 {[%emt 0:02:37]} 37. Rc5 {[%emt 0:05:16]} Ne6 {[%emt 0:00:06]} 38. Rc8+ {[%emt 0:00:06]} Kg7 {[%emt 0:00:05]} 39. Nxe6+ {[%emt 0:00:18]} Rxe6 {[%emt 0:00:06]} 40. Qc3+ {[%emt 0:00:04]} Rf6 {[%emt 0:33:43]} 41. Rc4 {[%emt 0:30:37]} g5 {[%emt 0:04:20]} 42. h4 {[%emt 0:02:02]} h6 {[%emt 0:00:00]} 43. hxg5 {[%emt 0:00:00]} hxg5 {[%emt 0:00:00]} 44. Rc5 {[%emt 0:00:00]} Kg6 {[%emt 0:00:00]} 45. Qe5 {[%emt 0:00:00]} Qb6 {[%emt 0:00:00]} 46. Qxg5+ {[%emt 0:00:00]} Kh7 {[%emt 0:00:00]} 47. Qh5+ {[%emt 0:00:00]} Kg7 {[%emt 0:00:00]} 48. Qg4+ {[%emt 0:00:00]} Rg6 {[%emt 0:00:00]} 49. Qd4+ {[%emt 0:00:00]} f6 {[%emt 0:00:00]} 50. Qc4 {[%emt 0:00:00]} 1-0

[Event "Asian Nation Cup Women 2018"]
[Site "Hamedan"]
[Date "2018.07.31"]
[Round "4"]
[White "Nakhbayeva, Guliskhan"]
[Black "Alinasab, Mobina"]
[Result "1-0"]
[ECO "D31"]
[WhiteElo "2352"]
[BlackElo "2281"]
[Annotator "NA"]
[PlyCount "97"]
[EventDate "2018.07.27"]
[EventType "swiss"]
[EventCountry "IRI"]
[SourceTitle "playchess.com"]
[Source "ChessBase"]
[SourceQuality "1"]
[WhiteTeam "Kazakhstan"]
[BlackTeam "Iran"]
[WhiteTeamCountry "KAZ"]
[BlackTeamCountry "IRI"]
[TimeControl "40/5400+30:1800+30"]

1. d4 {[%emt 0:00:00]} e6 {[%emt 0:00:12]} 2. c4 {[%emt 0:00:00]} d5 {[%emt 0:00:04]} 3. Nc3 {[%emt 0:00:04]} a6 {[%emt 0:00:03]} 4. e3 {[%emt 0:02:44]} dxc4 {[%emt 0:00:32]} 5. Bxc4 {[%emt 0:00:11]} Nf6 {[%emt 0:00:21]} 6. Nf3 {[%emt 0:00:19] D20: Angenommenes Damengambit} Be7 {[%emt 0:01:33]} (6... c5 7. O-O b5 8. Be2 Bb7 9. dxc5 Qxd1 10. Rxd1 Nc6 11. b3 Bxc5 12. Bb2 O-O 13. Nd2 Be7 14. Bf3 Rfd8 15. Nde4 Nxe4 16. Nxe4 f5 17. Ng3 Na5 18. Ne2 Bxf3 19. gxf3 Kf7 20. f4 Rxd1+ 21. Rxd1 {1-0 (46) Andreikin,D (2712)-Yu,Y (2751) Huaian 2017}) 7. O-O {[%emt 0:00:36]} b5 {[%emt 0:01:56]} 8. Bd3 {[%emt 0:07:48]} Bb7 {[%emt 0:00:20]} 9. Qe2 {[%emt 0:00:35]} Nbd7 {[%emt 0:08:16]} 10. e4 {[%emt 0:06:32]} c5 {[%emt 0:00:29]} 11. d5 {[%emt 0:01:30]} e5 $146 {[%emt 0:19:34]} ({Vorgänger:} 11... c4 $11 12. Bc2 exd5 (12... e5 13. a4 b4 14. Nd1 Qc7 15. Ne3 Rc8 16. Nf5 g6 17. Nxe7 Kxe7 {1-0 (29) Milov,V (2500)-Molinaroli,M (2295) Berlin 1993})) 12. b3 {[%emt 0:11:26]} O-O {[%emt 0:00:30]} 13. a4 {[%emt 0:00:30]} b4 {[%emt 0:00:30]} 14. Nd1 {[%emt 0:00:30]} Ne8 {[%emt 0:00:30]} 15. Bb2 {[%emt 0:00:30]} f6 {[%emt 0:00:30]} 16. Ne3 {[%emt 0:00:30]} Nd6 {[%emt 0:13:00]} 17. Nh4 Qe8 {[%emt 0:00:30]} 18. Nef5 {[%emt 0:07:18]} g6 {[%emt 0:00:51]} 19. Qg4 {[%emt 0:02:42]} Kh8 {[%emt 0:13:44]} 20. Nxe7 {[%emt 0:02:02]} Qxe7 {[%emt 0:00:07]} 21. Qxg6 {[%emt 0:00:06]} Rg8 {[%emt 0:00:03]} 22. Qh5 $18 {[%emt 0:07:02]} Rg5 {[%emt 0:00:47]} 23. Qe2 {[%emt 0:04:08]} Rag8 {[%emt 0:00:20]} 24. g3 {[%emt 0:01:55]} Rg4 {[%emt 0:07:35]} 25. Ng2 {[%emt 0:02:55]} Qf7 {[%emt 0:02:30]} 26. f3 {[%emt 0:04:43]} R4g7 {[%emt 0:03:14]} 27. Bxa6 {[%emt 0:01:23]} Ba8 {[%emt 0:06:00]} 28. Bd3 {[%emt 0:04:16]} Qh5 {[%emt 0:05:07]} 29. Rf2 {[%emt 0:01:55]} Qh3 {[%emt 0:00:37]} 30. Ne3 {[%emt 0:06:33]} Rg6 {[%emt 0:01:23]} 31. a5 {[%emt 0:05:47]} Nf8 {[%emt 0:03:57]} 32. Rg2 {[%emt 0:00:59]} Qd7 {[%emt 0:05:57]} 33. a6 {[%emt 0:00:19]} h5 {[%emt 0:01:56]} 34. f4 {[%emt 0:07:55]} exf4 {[%emt 0:00:46]} 35. gxf4 {[%emt 0:00:03]} Rxg2+ 36. Nxg2 {[%emt 0:00:01]} Qh3 {[%emt 0:03:03]} 37. Bxf6+ {[%emt 0:00:05]} Kh7 {[%emt 0:00:05]} 38. e5+ {[%emt 0:01:08]} Nf5 {[%emt 0:00:18]} 39. Be4 {[%emt 0:02:11]} Ng6 {[%emt 0:02:11]} 40. Qd3 {[%emt 0:02:04]} Qxd3 {[%emt 0:30:34]} 41. Bxd3 {[%emt 0:30:02]} Nxf4 {[%emt 0:00:27]} 42. Bxf5+ {[%emt 0:00:06]} Kh6 {[%emt 0:00:06]} 43. Be4 {[%emt 0:00:37]} Nxg2 {[%emt 0:00:12]} 44. Bxg2 {[%emt 0:01:53]} Bxd5 {[%emt 0:00:04]} 45. Ra2 {[%emt 0:00:05]} c4 {[%emt 0:01:42]} 46. Rd2 {[%emt 0:06:21]} cxb3 {[%emt 0:00:00]} 47. Rxd5 {[%emt 0:00:00]} b2 {[%emt 0:00:00]} 48. Rd1 {[%emt 0:00:00]} Rc8 {[%emt 0:00:00]} 49. h4 {[%emt 0:00:00]} 1-0

[Event "Asian Nation Cup Women 2018"]
[Site "Hamedan"]
[Date "2018.07.31"]
[Round "4"]
[White "Zahedifar, Anahita"]
[Black "Serikbay, Assel"]
[Result "1/2-1/2"]
[ECO "D14"]
[WhiteElo "2115"]
[BlackElo "2179"]
[Annotator "NA"]
[PlyCount "116"]
[EventDate "2018.07.27"]
[EventType "swiss"]
[EventCountry "IRI"]
[SourceTitle "playchess.com"]
[Source "ChessBase"]
[SourceQuality "1"]
[WhiteTeam "Iran"]
[BlackTeam "Kazakhstan"]
[WhiteTeamCountry "IRI"]
[BlackTeamCountry "KAZ"]
[TimeControl "40/5400+30:1800+30"]

1. d4 {[%emt 0:00:00]} d5 {[%emt 0:00:05]} 2. c4 {[%emt 0:00:00]} c6 {[%emt 0:00:05]} 3. cxd5 {[%emt 0:00:00]} cxd5 {[%emt 0:00:07]} 4. Nc3 {[%emt 0:00:00]} Nf6 {[%emt 0:00:14]} 5. Nf3 {[%emt 0:00:12]} Nc6 {[%emt 0:00:15]} 6. Bf4 {[%emt 0:00:07]} Bf5 {[%emt 0:00:21]} 7. e3 {[%emt 0:00:15]} e6 {[%emt 0:00:25]} 8. Qb3 {[%emt 0:01:18]} Bb4 {[%emt 0:00:54]} 9. Ne5 {[%emt 0:00:44]} O-O {[%emt 0:07:39]} 10. Nxc6 {[%emt 0:02:10]} Bxc3+ {[%emt 0:00:07]} 11. bxc3 {[%emt 0:00:42]} bxc6 {[%emt 0:00:06]} 12. Qa3 {[%emt 0:03:48]} Qb6 {[%emt 0:11:07]} 13. f3 {[%emt 0:09:32]} a5 {[%emt 0:07:25]} 14. Be2 $11 {[%emt 0:05:08]} Rfc8 {[%emt 0:04:51]} 15. O-O c5 {[%emt 0:10:46]} 16. Qb3 {[%emt 0:31:09]} Qa7 {[%emt 0:00:30]} 17. a4 {[%emt 0:07:41]} c4 {[%emt 0:01:52]} 18. Qa3 {[%emt 0:07:48]} Qb6 19. Ra2 {[%emt 0:05:34]} Qb3 {[%emt 0:08:25]} 20. Qb2 {[%emt 0:00:10]} Rc6 {[%emt 0:24:08]} 21. Bd1 {[%emt 0:04:28]} Qxb2 {[%emt 0:01:00]} 22. Rxb2 {[%emt 0:00:01]} h6 {[%emt 0:06:40]} 23. Rff2 {[%emt 0:02:18]} Ne8 {[%emt 0:05:50]} 24. Rb7 {[%emt 0:05:49]} Nd6 {[%emt 0:00:39]} 25. Bxd6 {[%emt 0:00:52]} Rxd6 {[%emt 0:00:02]} 26. Bc2 {[%emt 0:01:47]} Bxc2 {[%emt 0:01:17]} 27. Rxc2 {[%emt 0:00:20]} Rda6 {[%emt 0:05:17]} 28. Rcb2 {[%emt 0:00:48]} R6a7 {[%emt 0:00:39]} 29. e4 {[%emt 0:00:38]} Kf8 {[%emt 0:02:51]} 30. Rxa7 {[%emt 0:01:01]} Rxa7 {[%emt 0:00:04]} 31. exd5 {[%emt 0:00:04]} exd5 {[%emt 0:00:03]} 32. Rb5 {[%emt 0:00:06]} Rd7 {[%emt 0:01:31]} 33. Rxa5 {[%emt 0:00:07]} Ke7 {[%emt 0:00:21]} 34. Rb5 {[%emt 0:00:59]} Kd6 {[%emt 0:01:17]} 35. a5 {[%emt 0:01:50]} Kc6 {[%emt 0:00:29]} 36. Rb6+ {[%emt 0:00:56]} Kc7 {[%emt 0:00:03]} 37. Rb2 {[%emt 0:00:14]} Kc6 {[%emt 0:00:27]} 38. Kf2 {[%emt 0:00:45]} Ra7 {[%emt 0:00:27]} 39. Rb6+ {[%emt 0:00:16]} Kc7 {[%emt 0:00:15]} 40. Rb5 {[%emt 0:00:03]} Kc6 {[%emt 0:30:22]} 41. Rc5+ {[%emt 0:30:04]} Kd6 {[%emt 0:00:06]} 42. Ke3 {[%emt 0:00:56]} Re7+ {[%emt 0:00:00]} 43. Kd2 {[%emt 0:00:00]} Rb7 {[%emt 0:00:00]} 44. Kc2 {[%emt 0:00:00]} Rb3 {[%emt 0:00:00]} 45. Rc8 {[%emt 0:00:00]} Ra3 {[%emt 0:00:00]} 46. Rd8+ {[%emt 0:00:00]} Kc6 {[%emt 0:00:00]} 47. Rc8+ {[%emt 0:00:00]} Kd6 {[%emt 0:00:00]} 48. Rd8+ {[%emt 0:00:00]} Kc6 {[%emt 0:00:00]} 49. Rc8+ {[%emt 0:00:00]} Kd6 {[%emt 0:00:00]} 50. Ra8 {[%emt 0:00:00]} Ra2+ {[%emt 0:00:00]} 51. Kb1 {[%emt 0:00:00]} Rxg2 {[%emt 0:00:00]} 52. Rb8 {[%emt 0:00:00]} Kc7 {[%emt 0:00:00]} 53. Rb5 {[%emt 0:00:00]} Kc6 {[%emt 0:00:00]} 54. a6 {[%emt 0:00:00]} Kxb5 {[%emt 0:00:00]} 55. a7 {[%emt 0:00:00]} Rg1+ {[%emt 0:00:00]} 56. Kb2 {[%emt 0:00:00]} Rg2+ {[%emt 0:00:00]} 57. Kb1 {[%emt 0:00:00]} Rg1+ {[%emt 0:00:00]} 58. Kb2 {[%emt 0:00:00]} Rg2+ {[%emt 0:00:00]} 1/2-1/2

[Event "Asian Nation Cup Women 2018"]
[Site "Hamedan"]
[Date "2018.07.31"]
[Round "4"]
[White "Mahdian, Anousha"]
[Black "Zhai, Mo"]
[Result "0-1"]
[ECO "D20"]
[WhiteElo "2004"]
[BlackElo "2350"]
[Annotator "NA"]
[PlyCount "70"]
[EventDate "2018.07.27"]
[EventType "swiss"]
[EventCountry "IRI"]
[SourceTitle "playchess.com"]
[Source "ChessBase"]
[SourceQuality "1"]
[WhiteTeam "Iran"]
[BlackTeam "China"]
[WhiteTeamCountry "IRI"]
[BlackTeamCountry "CHN"]
[TimeControl "40/5400+30:1800+30"]

1. d4 {[%emt 0:00:00]} d5 {[%emt 0:00:10]} 2. c4 {[%emt 0:00:00]} dxc4 {[%emt 0:00:15]} 3. e4 {[%emt 0:00:00]} Nc6 {[%emt 0:00:22]} 4. Nf3 {[%emt 0:02:23]} Bg4 {[%emt 0:00:21]} 5. Bxc4 {[%emt 0:02:55] LiveBook: 83 Partien} e6 {[%emt 0:02:23]} 6. Be3 {[%emt 0:03:30]} Nf6 {[%emt 0:01:51]} 7. Nc3 {[%emt 0:01:27]} Bb4 {[%emt 0:01:11]} 8. Qd3 Bxf3 {[%emt 0:16:59]} 9. gxf3 {[%emt 0:02:56]} e5 {[%emt 0:03:12]} 10. d5 Ne7 11. f4 Ng4 {[%emt 0:12:32]} 12. Rg1 {[%emt 0:36:06]} Nxe3 {[%emt 0:05:34]} 13. Qxe3 {[%emt 0:05:54]} (13. fxe3 $16 O-O 14. O-O-O) 13... exf4 {[%emt 0:09:06]} 14. Qd4 $11 {[%emt 0:07:31]} Qd6 15. O-O-O {[%emt 0:08:23]} Ng6 {[%emt 0:16:22]} 16. Nb5 {[%emt 0:09:03]} Qe7 {[%emt 0:04:21]} 17. Kb1 {[%emt 0:07:35]} O-O {[%emt 0:01:50]} 18. d6 {[%emt 0:03:40]} Bxd6 {[%emt 0:01:56]} 19. Nxd6 {[%emt 0:00:03]} cxd6 {[%emt 0:00:08]} 20. h4 {[%emt 0:04:03]} Qxh4 {[%emt 0:08:27]} 21. Qxd6 {[%emt 0:01:50]} Rad8 {[%emt 0:03:04]} 22. Qc5 {[%emt 0:01:44]} b6 {[%emt 0:08:01]} 23. Qf5 {[%emt 0:01:16]} Rxd1+ {[%emt 0:00:27]} 24. Rxd1 {[%emt 0:00:03]} b5 {[%emt 0:02:39]} 25. Bb3 {[%emt 0:00:53]} Qxf2 {[%emt 0:00:10]} 26. Rd7 {[%emt 0:00:57]} Qe1+ {[%emt 0:00:21]} 27. Rd1 {[%emt 0:00:01]} Qe2 {[%emt 0:01:03]} 28. Rd7 {[%emt 0:00:07]} Kh8 {[%emt 0:00:45]} 29. a3 {[%emt 0:00:24]} Qe3 {[%emt 0:00:39]} 30. Bxf7 {[%emt 0:01:38]} Qb6 {[%emt 0:00:38]} 31. e5 {[%emt 0:00:31]} Qg1+ {[%emt 0:00:01]} 32. Ka2 {[%emt 0:00:04]} Qc5 {[%emt 0:00:06]} 33. Bxg6 {[%emt 0:01:02]} Rxf5 34. Bxf5 {[%emt 0:00:01]} g6 {[%emt 0:01:26]} 35. Bd3 {[%emt 0:00:59]} Qxe5 {[%emt 0:00:15]} 0-1